fUSD/lending_fUSD_20260616
["ID","MTS","AMOUNT","RATE_DAILY","PERIOD"]
[425196708,1781567439000,-3980.94908728,0.000286,2]
[425196691,1781567439000,-346.25581462,0.00028581,7]
[425196721,1781567439000,-626.08,0.00028725,2]
[425196690,1781567439000,-316.36322181,0.00028581,7]
[425196672,1781567439000,-1000.0,0.000281,2]
[425196668,1781567439000,-1588.94,0.00027945,2]
[425196670,1781567439000,-428.12,0.000281,7]
[425196671,1781567439000,-698.0,0.000281,2]
[425196669,1781567439000,-600.0,0.00028,2]
[425196683,1781567439000,-1712.58047165,0.000285,2]
[425196682,1781567439000,-1588.94,0.00028493,2]
[425196673,1781567439000,-331.881994,0.000282,7]
[425196680,1781567439000,-371.0,0.00028267,2]
[425196678,1781567439000,-982.66116931,0.00028226,2]
[425196681,1781567439000,-500.0,0.00028287,2]
[425196692,1781567439000,-388.64047756,0.00028581,7]
[425196677,1781567439000,-1588.94,0.00028219,2]
[425196674,1781567439000,-331.881994,0.000282,14]
[425196676,1781567439000,-501.0,0.00028216,3]
[425196679,1781567439000,-89864.486889,0.00028263,2]
[425196685,1781567439000,-1712.58047162,0.000285,2]
[425196695,1781567439000,-341.82597758,0.00028581,7]
[425196686,1781567439000,-402.41625533,0.0002858,7]
[425196684,1781567439000,-1712.58047162,0.000285,2]
[425196687,1781567439000,-347.65536055,0.00028581,2]
[425196688,1781567439000,-374.86957416,0.00028581,7]
[425196689,1781567439000,-352.54770099,0.00028581,7]
[425196693,1781567439000,-346.89637301,0.00028581,7]
[425196675,1781567439000,-347.15,0.000282,7]
[425196719,1781567439000,-626.08,0.00028693,30]
[425196715,1781567439000,-867.69,0.0002863,30]
[425196723,1781567439000,-338.90104811,0.00028743,7]
[425196751,1781567439000,-626.08,0.00028947,7]
[425196756,1781567439000,-1961.37,0.00028964,2]
[425196752,1781567439000,-626.51,0.00028947,7]
[425196754,1781567439000,-1961.47,0.00028964,2]
[425196755,1781567439000,-867.15,0.00028964,2]
[425196753,1781567439000,-1808.43,0.00028964,2]
[425196758,1781567439000,-626.08,0.00028979,30]
[425196760,1781567439000,-500.0,0.00029,2]
[425196769,1781567439000,-500.0,0.00029,2]
[425196759,1781567439000,-626.51,0.00028979,30]
[425196770,1781567439000,-500.0,0.00029,2]
[425196757,1781567439000,-867.69,0.00028964,2]
[425196761,1781567439000,-500.0,0.00029,2]
[425196767,1781567439000,-500.0,0.00029,2]
[425196768,1781567439000,-500.0,0.00029,2]
[425196765,1781567439000,-500.0,0.00029,2]
[425196764,1781567439000,-500.0,0.00029,2]
[425196766,1781567439000,-500.0,0.00029,2]
[425196771,1781567439000,-500.0,0.00029,2]
[425196773,1781567439000,-398.98104579,0.00029,2]
[425196775,1781567439000,-165.62953097,0.00029,2]
[425196772,1781567439000,-7010.10833548,0.00029,2]
[425196774,1781567439000,-715.64737265,0.00029,2]
[425196722,1781567439000,-626.51,0.00028725,2]
[425196763,1781567439000,-500.0,0.00029,2]
[425196749,1781567439000,-626.08,0.00028915,2]
[425196762,1781567439000,-500.0,0.00029,2]
[425196748,1781567439000,-428.12,0.000289,7]
[425196750,1781567439000,-626.51,0.00028915,2]
[425196724,1781567439000,-376.95522858,0.00028743,7]
[425196727,1781567439000,-626.08,0.00028756,7]
[425196725,1781567439000,-336.23005193,0.00028743,7]
[425196726,1781567439000,-501.0,0.00028755,3]
[425196728,1781567439000,-626.51,0.00028756,7]
[425196729,1781567439000,-1588.94,0.00028767,2]
[425196735,1781567439000,-1808.43,0.00028797,7]
[425196731,1781567439000,-159.19,0.00028767,53]
[425196732,1781567439000,-173.21645378,0.00028767,3]
[425196730,1781567439000,-1466.52956362,0.00028767,30]
[425196734,1781567439000,-626.51,0.00028788,30]
[425196733,1781567439000,-626.08,0.00028788,30]
[425196746,1781567439000,-626.08,0.00028883,30]
[425196736,1781567439000,-1961.47,0.00028797,7]
[425196744,1781567439000,-626.08,0.00028852,7]
[425196745,1781567439000,-626.51,0.00028852,7]
[425196743,1781567439000,-1035.44,0.00028851,7]
[425196742,1781567439000,-626.51,0.0002882,2]
[425196741,1781567439000,-626.08,0.0002882,2]
[425196740,1781567439000,-347.15,0.000288,7]
[425196738,1781567439000,-1961.37,0.00028797,7]
[425196747,1781567439000,-626.51,0.00028883,30]
[425196737,1781567439000,-867.15,0.00028797,7]
[425196739,1781567439000,-867.69,0.00028797,7]
[425196814,1781567440000,-1808.43,0.00029299,7]
[425196813,1781567440000,-501.0,0.00029295,4]
[425196811,1781567440000,-626.17,0.00029232,7]
[425196810,1781567440000,-626.51,0.00029201,2]
[425196808,1781567440000,-217.29,0.000292,7]
[425196815,1781567440000,-1961.47,0.00029299,7]
[425196817,1781567440000,-1961.37,0.00029299,7]
[425196809,1781567440000,-626.08,0.00029201,2]
[425196816,1781567440000,-867.15,0.00029299,7]
[425196807,1781567440000,-626.51,0.00029169,30]
[425196812,1781567440000,-626.51,0.00029232,7]
[425196818,1781567440000,-867.69,0.00029299,7]
[425196827,1781567440000,-178.04185413,0.0002944,7]
[425196844,1781567440000,-582.96071634,0.00029441,7]
[425196833,1781567440000,-234.5011796,0.0002944,7]
[425196820,1781567440000,-328.881994,0.000293,14]
[425196821,1781567440000,-347.15,0.000293,7]
[425196824,1781567440000,-788.97,0.00029316,7]
[425196826,1781567440000,-1139.96746197,0.0002939,30]
[425196822,1781567440000,-709.39,0.00029316,7]
[425196825,1781567440000,-651.43,0.00029316,7]
[425196829,1781567440000,-246.01424849,0.0002944,7]
[425196831,1781567440000,-603.62438299,0.0002944,7]
[425196823,1781567440000,-1105.16,0.00029316,7]
[425196835,1781567440000,-225.82402891,0.0002944,7]
[425196806,1781567440000,-626.08,0.00029169,30]
[425196819,1781567440000,-328.881994,0.000293,7]
[425196801,1781567440000,-867.15,0.00029132,30]
[425196780,1781567440000,-626.51,0.0002901,2]
[425196805,1781567440000,-626.51,0.00029137,7]
[425196782,1781567440000,-626.51,0.00029042,7]
[425196836,1781567440000,-160.25199501,0.0002944,7]
[425196779,1781567440000,-626.08,0.0002901,2]
[425196778,1781567440000,-934.0,0.00029001,2]
[425196777,1781567440000,-419.0,0.00029001,2]
[425196776,1781567440000,-3558.0,0.00029001,2]
[425196781,1781567440000,-626.08,0.00029042,7]
[425196784,1781567440000,-626.51,0.00029074,30]
[425196794,1781567440000,-3741.0,0.0002912,30]
[425196786,1781567440000,-626.51,0.00029105,2]
[425196783,1781567440000,-626.08,0.00029074,30]
[425196787,1781567440000,-760.0,0.00029117,30]
[425196803,1781567440000,-867.69,0.00029132,30]
[425196785,1781567440000,-626.08,0.00029105,2]
[425196789,1781567440000,-176.0,0.00029117,30]
[425196790,1781567440000,-156.0,0.0002912,30]
[425196791,1781567440000,-151.0,0.0002912,30]
[425196793,1781567440000,-1049.0,0.0002912,30]
[425196795,1781567440000,-153.0,0.00029126,30]
[425196796,1781567440000,-158.0,0.00029126,30]
[425196802,1781567440000,-1961.37,0.00029132,30]
[425196798,1781567440000,-154.0,0.00029126,30]
[425196799,1781567440000,-1808.43,0.00029132,30]
[425196800,1781567440000,-1961.47,0.00029132,30]
[425196797,1781567440000,-444.0,0.00029126,30]
[425196804,1781567440000,-626.08,0.00029137,7]
[425196788,1781567440000,-168.0,0.00029117,30]
[425196834,1781567440000,-207.93119833,0.0002944,7]
[425196792,1781567440000,-153.0,0.0002912,30]
[425196837,1781567440000,-390.89136743,0.0002944,7]
[425196873,1781567440000,-255.29709126,0.00029607,7]
[425196875,1781567440000,-158.68825859,0.00029607,7]
[425196876,1781567440000,-242.36479367,0.00029607,7]
[425196874,1781567440000,-504.34507789,0.00029607,7]
[425196870,1781567440000,-229.03382234,0.00029607,7]
[425196871,1781567440000,-155.33569629,0.00029607,7]
[425196879,1781567440000,-195.46503417,0.00029607,7]
[425196877,1781567440000,-258.01639212,0.00029607,7]
[425196880,1781567440000,-289.75607591,0.00029607,7]
[425196896,1781567440000,-517.6265061,0.00029808,14]
[425196878,1781567440000,-263.94215352,0.00029607,7]
[425196881,1781567440000,-207.36299476,0.00029607,7]
[425196883,1781567440000,-207.18441686,0.00029607,7]
[425196890,1781567440000,-1004.38,0.00029717,7]
[425196893,1781567440000,-1808.43,0.00029802,7]
[425196891,1781567440000,-407.37855037,0.0002977,2]
[425196892,1781567440000,-9614.40720427,0.00029797,2]
[425196882,1781567440000,-288.34584897,0.00029607,5]
[425196885,1781567440000,-259.96965846,0.00029607,7]
[425196887,1781567440000,-191.24661743,0.00029607,7]
[425196884,1781567440000,-208.90717116,0.00029607,7]
[425196889,1781567440000,-1808.43,0.00029634,30]
[425196886,1781567440000,-202.96125801,0.00029607,7]
[425196894,1781567440000,-500.0,0.00029808,14]
[425196895,1781567440000,-500.0,0.00029808,14]
[425196897,1781567440000,-150.0,0.00029808,14]
[425196843,1781567440000,-474.54483272,0.00029441,7]
[425196872,1781567440000,-202.16394006,0.00029607,7]
[425196869,1781567440000,-186.44605605,0.00029607,7]
[425196888,1781567440000,-1466.52956362,0.00029623,30]
[425196861,1781567440000,-150.0,0.00029534,2]
[425196866,1781567440000,-242.0407088,0.00029607,7]
[425196839,1781567440000,-187.88996209,0.00029441,7]
[425196838,1781567440000,-207.39179017,0.00029441,2]
[425196842,1781567440000,-528.82155148,0.00029441,7]
[425196840,1781567440000,-521.48304083,0.00029441,2]
[425196846,1781567440000,-520.34455952,0.00029441,7]
[425196848,1781567440000,-512.73896637,0.00029441,7]
[425196849,1781567440000,-497.90762207,0.00029441,7]
[425196845,1781567440000,-523.22282716,0.00029441,7]
[425196857,1781567440000,-1808.43,0.00029467,2]
[425196850,1781567440000,-554.25242497,0.00029441,7]
[425196847,1781567440000,-469.46743594,0.00029441,7]
[425196851,1781567440000,-495.37088822,0.00029447,7]
[425196841,1781567440000,-562.30436124,0.00029441,7]
[425196853,1781567440000,-465.29630303,0.00029447,7]
[425196864,1781567440000,-151.42320094,0.00029607,7]
[425196852,1781567440000,-573.19216111,0.00029447,7]
[425196863,1781567440000,-151.0,0.00029604,7]
[425196862,1781567440000,-428.12,0.000296,7]
[425196858,1781567440000,-867.15,0.00029467,2]
[425196860,1781567440000,-1138.80853792,0.000295,2]
[425196865,1781567440000,-508.35157216,0.00029607,7]
[425196867,1781567440000,-565.43284287,0.00029607,7]
[425196859,1781567440000,-867.69,0.00029467,2]
[425196855,1781567440000,-484.63115613,0.00029447,7]
[425196856,1781567440000,-454.64106181,0.00029447,7]
[425196854,1781567440000,-487.55733046,0.00029447,7]
[425196868,1781567440000,-225.00882231,0.00029607,7]
[425196920,1781567441000,-200.0,0.0003,2]
[425196930,1781567441000,-586.33705114,0.00030014,7]
[425196922,1781567441000,-356.08370825,0.00030014,7]
[425196924,1781567441000,-469.00235921,0.00030014,7]
[425196923,1781567441000,-492.02849698,0.00030014,7]
[425196925,1781567441000,-804.83251065,0.00030014,7]
[425196928,1781567441000,-320.50399003,0.00030014,7]
[425196926,1781567441000,-230.35919601,0.00030014,7]
[425196933,1781567441000,-484.08141761,0.00030014,7]
[425196927,1781567441000,-415.86239667,0.00030014,7]
[425196929,1781567441000,-327.05649306,0.00030014,7]
[425196931,1781567441000,-418.61054363,0.00030014,7]
[425196932,1781567441000,-484.72958734,0.00030014,7]
[425196942,1781567441000,-697.63043621,0.00030015,7]
[425196944,1781567441000,-683.65195516,0.00030015,7]
[425196935,1781567441000,-695.3107211,0.00030015,2]
[425196917,1781567441000,-87412.99889823,0.0003,7]
[425196921,1781567441000,-1139.96746197,0.00030012,30]
[425196907,1781567441000,-1808.43,0.00029969,2]
[425196899,1781567441000,-150.0,0.00029808,14]
[425196912,1781567441000,-14584.38227881,0.0003,2]
[425196934,1781567441000,-375.77992419,0.00030015,7]
[425196900,1781567441000,-150.0,0.00029808,14]
[425196904,1781567441000,-501.0,0.00029834,4]
[425196905,1781567441000,-16633.0910964,0.000299,2]
[425196906,1781567441000,-500.0,0.00029966,2]
[425196898,1781567441000,-150.0,0.00029808,14]
[425196903,1781567441000,-407.37,0.00029828,13]
[425196901,1781567441000,-150.0,0.00029808,14]
[425196914,1781567441000,-102373.96305153,0.0003,7]
[425196902,1781567441000,-250.0,0.00029808,14]
[425196910,1781567441000,-458.0,0.0003,2]
[425196913,1781567441000,-2076.29607318,0.0003,10]
[425196918,1781567441000,-87412.99889823,0.0003,7]
[425196909,1781567441000,-405.0,0.0003,2]
[425196908,1781567441000,-500.0,0.00029999,2]
[425196919,1781567441000,-650.0,0.0003,2]
[425196911,1781567441000,-457.0,0.0003,2]
[425196915,1781567441000,-2499.99,0.0003,2]
[425196916,1781567441000,-2500.0,0.0003,2]
[425196943,1781567441000,-625.95658125,0.00030015,7]
[425196939,1781567441000,-777.28095512,0.00030015,7]
[425196938,1781567441000,-632.72644363,0.00030015,7]
[425196964,1781567441000,-153.0,0.0003012,30]
[425196965,1781567441000,-1049.0,0.0003012,30]
[425196966,1781567441000,-3741.0,0.0003012,30]
[425196968,1781567441000,-158.0,0.00030126,30]
[425196967,1781567441000,-153.0,0.00030126,30]
[425196969,1781567441000,-444.0,0.00030126,30]
[425196970,1781567441000,-154.0,0.00030126,30]
[425196980,1781567441000,-838.86374171,0.00030137,2]
[425196971,1781567441000,-159.58,0.00030136,7]
[425196973,1781567441000,-554.8,0.00030137,2]
[425196972,1781567441000,-1808.51,0.00030136,30]
[425196974,1781567441000,-234.25522288,0.00030137,2]
[425196977,1781567441000,-500.0,0.00030137,3]
[425196979,1781567441000,-500.0,0.00030137,3]
[425196978,1781567441000,-500.0,0.00030137,3]
[425196975,1781567441000,-210.3026699,0.00030137,7]
[425196936,1781567441000,-749.73914832,0.00030015,7]
[425196962,1781567441000,-156.0,0.0003012,30]
[425196958,1781567441000,-400.0,0.0003007,2]
[425196976,1781567441000,-500.0,0.00030137,3]
[425196963,1781567441000,-151.0,0.0003012,30]
[425196937,1781567441000,-705.09540198,0.00030015,7]
[425196959,1781567441000,-760.0,0.00030117,30]
[425196940,1781567441000,-451.64805782,0.00030015,7]
[425196941,1781567441000,-833.90158384,0.00030015,7]
[425196945,1781567441000,-663.87682943,0.00030015,7]
[425196954,1781567441000,-500.0,0.00030037,14]
[425196949,1781567441000,-764.25621482,0.00030021,7]
[425196951,1781567441000,-650.07644061,0.00030021,7]
[425196948,1781567441000,-414.78358034,0.00030021,2]
[425196957,1781567441000,-400.0,0.0003007,2]
[425196947,1781567441000,-660.49451763,0.00030021,7]
[425196950,1781567441000,-620.39507071,0.00030021,7]
[425196953,1781567441000,-606.18808241,0.00030021,7]
[425196956,1781567441000,-572.0,0.00030037,2]
[425196952,1781567441000,-646.17487484,0.00030021,7]
[425196955,1781567441000,-504.51,0.00030037,14]
[425196961,1781567441000,-176.0,0.00030117,30]
[425196946,1781567441000,-739.00323329,0.00030015,7]
[425196960,1781567441000,-168.0,0.00030117,30]
[425197015,1781567442000,-151.8503883,0.00030183,7]
[425197014,1781567442000,-429.39248611,0.00030183,7]
[425197021,1781567442000,-405.92251602,0.00030183,7]
[425197018,1781567442000,-417.81434231,0.00030183,7]
[425197019,1781567442000,-519.93931692,0.00030183,7]
[425197013,1781567442000,-414.72598951,0.00030183,7]
[425197010,1781567442000,-527.88430703,0.00030183,7]
[425197011,1781567442000,-390.93006835,0.00030183,7]
[425197012,1781567442000,-579.51215182,0.00030183,7]
[425197007,1781567442000,-672.46010386,0.00030183,7]
[425197020,1781567442000,-406.22358871,0.00030183,7]
[425197016,1781567442000,-414.36883371,0.00030183,7]
[425197027,1781567442000,-765.3,0.00030196,7]
[425197024,1781567442000,-576.69169795,0.00030183,5]
[425197022,1781567442000,-382.49323487,0.00030183,7]
[425197023,1781567442000,-184.33030459,0.00030183,7]
[425197026,1781567442000,-1072.01,0.00030196,7]
[425197028,1781567442000,-631.88,0.00030196,7]
[425197030,1781567442000,-353.0,0.00030201,30]
[425197025,1781567442000,-688.11,0.00030196,7]
[425197031,1781567442000,-371.0,0.00030239,2]
[425197029,1781567442000,-428.12,0.000302,7]
[425197043,1781567442000,-204.52,0.0003037,2]
[425197008,1781567442000,-317.37651717,0.00030183,7]
[425197017,1781567442000,-406.07880189,0.00030183,7]
[425197004,1781567442000,-677.20805406,0.00030183,7]
[425196996,1781567442000,-217.24596635,0.00030183,7]
[425197001,1781567442000,-310.67139257,0.00030183,7]
[425197035,1781567442000,-150.0,0.0003024,2]
[425196981,1781567442000,-500.0,0.00030137,2]
[425196982,1781567442000,-500.0,0.00030137,2]
[425196983,1781567442000,-500.0,0.00030137,2]
[425196985,1781567442000,-200.0,0.00030137,2]
[425196984,1781567442000,-200.0,0.00030137,2]
[425196987,1781567442000,-204.31336771,0.00030183,7]
[425196997,1781567442000,-753.91045716,0.00030183,7]
[425196986,1781567442000,-639.38,0.00030137,7]
[425196989,1781567442000,-295.44385391,0.00030183,7]
[425196988,1781567442000,-296.5197898,0.00030183,5]
[425197006,1781567442000,-510.59418252,0.00030183,7]
[425196994,1781567442000,-302.84640187,0.00030183,7]
[425196993,1781567442000,-405.84428898,0.00030183,7]
[425196995,1781567442000,-200.77159495,0.00030183,7]
[425196991,1781567442000,-158.90211509,0.00030183,7]
[425196992,1781567442000,-368.30868617,0.00030183,7]
[425196999,1781567442000,-372.89211209,0.00030183,7]
[425197002,1781567442000,-163.09993038,0.00030183,7]
[425197005,1781567442000,-328.13601764,0.00030183,7]
[425197009,1781567442000,-516.03278423,0.00030183,7]
[425197003,1781567442000,-404.32788013,0.00030183,7]
[425197000,1781567442000,-458.06764468,0.00030183,7]
[425196998,1781567442000,-450.01764463,0.00030183,7]
[425196990,1781567442000,-375.55912069,0.00030183,7]
[425197034,1781567442000,-150.0,0.0003024,2]
[425197032,1781567442000,-835.0,0.0003024,2]
[425197033,1781567442000,-150.0,0.0003024,2]
[425197065,1781567442000,-872.03804526,0.00030588,7]
[425197068,1781567442000,-923.75404161,0.00030588,7]
[425197077,1781567442000,-846.51006757,0.00030759,7]
[425197069,1781567442000,-825.61814704,0.00030594,7]
[425197078,1781567442000,-840.57512982,0.00030759,7]
[425197076,1781567442000,-942.38807145,0.00030759,7]
[425197067,1781567442000,-829.84603679,0.00030588,7]
[425197072,1781567442000,-1139.96746197,0.00030635,30]
[425197071,1781567442000,-757.73510301,0.00030594,7]
[425197070,1781567442000,-955.32026852,0.00030594,7]
[425197073,1781567442000,-500.0,0.00030658,2]
[425197074,1781567442000,-200.0,0.00030743,2]
[425197080,1781567442000,-347.15,0.000308,7]
[425197081,1781567442000,-500.0,0.00030892,2]
[425197079,1781567442000,-428.12,0.000308,7]
[425197082,1781567442000,-500.0,0.00030892,2]
[425197089,1781567442000,-500.0,0.00030892,2]
[425197085,1781567442000,-500.0,0.00030892,2]
[425197084,1781567442000,-500.0,0.00030892,2]
[425197083,1781567442000,-500.0,0.00030892,2]
[425197086,1781567442000,-500.0,0.00030892,2]
[425197088,1781567442000,-500.0,0.00030892,2]
[425197087,1781567442000,-500.0,0.00030892,2]
[425197090,1781567442000,-500.0,0.00030892,2]
[425197036,1781567442000,-150.0,0.0003024,2]
[425197059,1781567442000,-869.13840138,0.00030588,2]
[425197064,1781567442000,-1042.3769798,0.00030588,7]
[425197075,1781567442000,-200.0,0.00030743,2]
[425197058,1781567442000,-1006.04063831,0.00030587,7]
[425197037,1781567442000,-276.0,0.0003024,2]
[425197061,1781567442000,-881.36925247,0.00030588,7]
[425197038,1781567442000,-3113.0,0.00030292,5]
[425197040,1781567442000,-204.52,0.00030366,2]
[425197042,1781567442000,-204.52,0.00030368,2]
[425197041,1781567442000,-204.52,0.00030368,2]
[425197039,1781567442000,-204.52,0.00030364,2]
[425197047,1781567442000,-501.0,0.00030373,5]
[425197091,1781567442000,-500.0,0.00030892,2]
[425197044,1781567442000,-204.52,0.0003037,2]
[425197049,1781567442000,-334.881994,0.000304,14]
[425197045,1781567442000,-204.5,0.00030372,2]
[425197048,1781567442000,-334.881994,0.000304,7]
[425197046,1781567442000,-204.52,0.00030372,2]
[425197055,1781567442000,-1466.52956362,0.00030479,30]
[425197062,1781567442000,-790.90805453,0.00030588,7]
[425197050,1781567442000,-200.0,0.000304,11]
[425197060,1781567442000,-937.1739354,0.00030588,7]
[425197057,1781567442000,-250.0,0.00030587,7]
[425197066,1781567442000,-782.44572656,0.00030588,7]
[425197063,1781567442000,-971.6011939,0.00030588,7]
[425197053,1781567442000,-200.0,0.00030438,2]
[425197052,1781567442000,-200.0,0.00030438,2]
[425197054,1781567442000,-231.68,0.00030441,8]
[425197051,1781567442000,-198.51,0.00030411,120]
[425197056,1781567442000,-217.29,0.000305,7]
[425197128,1781567443000,-195.18,0.00031221,30]
[425197143,1781567443000,-1046.44565431,0.00031448,7]
[425197129,1781567443000,-1466.52956362,0.00031336,30]
[425197138,1781567443000,-1057.64310297,0.00031448,7]
[425197136,1781567443000,-1124.60872248,0.00031448,7]
[425197121,1781567443000,-1049.0,0.0003112,30]
[425197134,1781567443000,-1042.96608165,0.00031448,2]
[425197126,1781567443000,-154.0,0.00031126,30]
[425197123,1781567443000,-153.0,0.00031126,30]
[425197125,1781567443000,-444.0,0.00031126,30]
[425197144,1781567443000,-1165.92143269,0.00031448,7]
[425197132,1781567443000,-200.0,0.000314,11]
[425197140,1781567443000,-949.08966544,0.00031448,7]
[425197155,1781567443000,-331.881994,0.000315,14]
[425197130,1781567443000,-428.12,0.000314,7]
[425197146,1781567443000,-995.81524414,0.00031448,7]
[425197150,1781567443000,-501.0,0.00031452,6]
[425197156,1781567443000,-159.19,0.00031507,120]
[425197151,1781567443000,-990.74177644,0.00031455,7]
[425197147,1781567443000,-1108.50484994,0.00031448,7]
[425197149,1781567443000,-166.08457987,0.00031452,22]
[425197157,1781567443000,-982.66116931,0.00031535,2]
[425197153,1781567443000,-1146.38432223,0.00031455,7]
[425197158,1781567443000,-500.0,0.00031602,2]
[425197154,1781567443000,-331.881994,0.000315,7]
[425197127,1781567443000,-1000.0,0.000312,7]
[425197145,1781567443000,-938.93487187,0.00031448,7]
[425197124,1781567443000,-158.0,0.00031126,30]
[425197093,1781567443000,-500.0,0.00030892,2]
[425197120,1781567443000,-153.0,0.0003112,30]
[425197092,1781567443000,-500.0,0.00030892,2]
[425197152,1781567443000,-1109.67038828,0.00031455,7]
[425197101,1781567443000,-500.0,0.00030892,2]
[425197094,1781567443000,-500.0,0.00030892,2]
[425197100,1781567443000,-500.0,0.00030892,2]
[425197098,1781567443000,-500.0,0.00030892,2]
[425197095,1781567443000,-500.0,0.00030892,2]
[425197097,1781567443000,-500.0,0.00030892,2]
[425197102,1781567443000,-500.0,0.00030892,2]
[425197096,1781567443000,-500.0,0.00030892,2]
[425197109,1781567443000,-150.0,0.00031011,2]
[425197110,1781567443000,-200.0,0.0003105,2]
[425197122,1781567443000,-3741.0,0.0003112,30]
[425197104,1781567443000,-501.0,0.00030913,6]
[425197115,1781567443000,-760.0,0.00031117,30]
[425197103,1781567443000,-795.0,0.00030892,2]
[425197105,1781567443000,-151.0,0.00030913,7]
[425197112,1781567443000,-666.82,0.00031075,7]
[425197107,1781567443000,-89864.486889,0.00030972,2]
[425197113,1781567443000,-1038.85,0.00031075,7]
[425197111,1781567443000,-200.0,0.0003105,2]
[425197108,1781567443000,-2204.11788716,0.00031,120]
[425197116,1781567443000,-168.0,0.00031117,30]
[425197117,1781567443000,-176.0,0.00031117,30]
[425197119,1781567443000,-151.0,0.0003112,30]
[425197118,1781567443000,-156.0,0.0003112,30]
[425197106,1781567443000,-200.0,0.00030954,2]
[425197159,1781567443000,-1008.69015579,0.00031623,7]
[425197099,1781567443000,-500.0,0.00030892,2]
[425197172,1781567443000,-760.0,0.00032117,30]
[425197188,1781567443000,-397.5,0.0003231,30]
[425197190,1781567443000,-1295.84552,0.000324,120]
[425197195,1781567443000,-1107.63007,0.00032498,2]
[425197191,1781567443000,-192.36602463,0.00032439,30]
[425197200,1781567443000,-1191.11104074,0.00032498,2]
[425197198,1781567443000,-1148.61238259,0.00032498,2]
[425197207,1781567443000,-1536.04360648,0.00032498,2]
[425197201,1781567443000,-1235.18214925,0.00032498,2]
[425197202,1781567443000,-1280.88388877,0.00032498,2]
[425197199,1781567443000,-200.72513036,0.00032498,2]
[425197205,1781567443000,-1428.38747117,0.00032498,2]
[425197204,1781567443000,-1377.42282658,0.00032498,2]
[425197203,1781567443000,-1328.27659266,0.00032498,2]
[425197206,1781567443000,-1481.2378076,0.00032498,2]
[425197208,1781567443000,-1592.87721992,0.00032498,2]
[425197210,1781567443000,-1712.93078311,0.00032498,2]
[425197220,1781567443000,-501.0,0.00032531,7]
[425197218,1781567443000,-217.29,0.000325,7]
[425197219,1781567443000,-1139.96746197,0.00032503,30]
[425197211,1781567443000,-1776.30922209,0.00032498,2]
[425197209,1781567443000,-1651.81367706,0.00032498,2]
[425197214,1781567443000,-1980.8648231,0.00032498,2]
[425197213,1781567443000,-1910.18787185,0.00032498,2]
[425197212,1781567443000,-1842.0326633,0.00032498,2]
[425197215,1781567443000,-2054.15682156,0.00032498,2]
[425197217,1781567443000,-425.36,0.00032499,2]
[425197160,1781567443000,-1015.81208109,0.00031623,7]
[425197194,1781567443000,-1068.11,0.00032498,2]
[425197193,1781567443000,-1030.0,0.00032498,2]
[425197216,1781567443000,-1461.36,0.00032499,5]
[425197196,1781567443000,-151.0,0.00032498,2]
[425197171,1781567443000,-6349.69,0.00032116,2]
[425197162,1781567443000,-1139.96746197,0.0003188,30]
[425197170,1781567443000,-934.0,0.00032001,2]
[425197161,1781567443000,-1358.80728808,0.00031636,4]
[425197164,1781567443000,-283.10221941,0.00031949,2]
[425197163,1781567443000,-1001.0,0.00031945,120]
[425197165,1781567443000,-501.0,0.00031992,7]
[425197192,1781567443000,-611.14510512,0.00032498,2]
[425197168,1781567443000,-3558.0,0.00032001,2]
[425197166,1781567443000,-1786.44,0.00032,30]
[425197169,1781567443000,-419.0,0.00032001,2]